[Event "Late-Titled-Tuesday-Blitz-September-12-2023"]
[Site "Chess.com"]
[Date "2023.09.12"]
[Round "5"]
[White "GameOverBro"]
[Black "AlejandroBalde"]
[Result "0-1"]
[WhiteElo "2465"]
[BlackElo "2008"]
[TimeControl "180+1"]
[EndTime "14:53:53 PDT"]
[Termination "AlejandroBalde won on time"]

1. e4 {[%clk 0:03:00.2]} 1... c5 {[%clk 0:03:00]} 2. Nf3 {[%clk 0:02:59.2]} 2...
Nc6 {[%clk 0:02:57.9]} 3. d4 {[%clk 0:02:59.5]} 3... cxd4 {[%clk 0:02:57.5]} 4.
Nxd4 {[%clk 0:03:00]} 4... e5 {[%clk 0:02:57.7]} 5. Nb5 {[%clk 0:02:59.3]} 5...
a6 {[%clk 0:02:57.6]} 6. Nd6+ {[%clk 0:02:59]} 6... Bxd6 {[%clk 0:02:58.1]} 7.
Qxd6 {[%clk 0:02:58.9]} 7... Qf6 {[%clk 0:02:58.8]} 8. Qa3 {[%clk 0:02:58]} 8...
Qg6 {[%clk 0:02:55.8]} 9. Qd3 {[%clk 0:02:32.4]} 9... d5 {[%clk 0:02:46.5]} 10.
exd5 {[%clk 0:02:19.4]} 10... Bf5 {[%clk 0:02:46.5]} 11. Qe3 {[%clk 0:02:05.9]}
11... Nb4 {[%clk 0:02:27.4]} 12. Qxe5+ {[%clk 0:02:03.9]} 12... Ne7 {[%clk
0:02:27]} 13. Na3 {[%clk 0:01:58.8]} 13... O-O {[%clk 0:02:07.9]} 14. Qg3 {[%clk
0:01:32.5]} 14... Nexd5 {[%clk 0:01:28.4]} 15. Qxg6 {[%clk 0:01:28.8]} 15...
Rfe8+ {[%clk 0:01:22]} 16. Be2 {[%clk 0:01:10.6]} 16... Bxg6 {[%clk 0:01:16.1]}
17. Kf1 {[%clk 0:01:01.5]} 17... Nxc2 {[%clk 0:00:56.4]} 18. Nxc2 {[%clk
0:01:00.4]} 18... Bxc2 {[%clk 0:00:56.4]} 19. Bf3 {[%clk 0:00:57.4]} 19... Nb4
{[%clk 0:00:54.8]} 20. g3 {[%clk 0:00:56.3]} 20... Be4 {[%clk 0:00:52.4]} 21.
Kg2 {[%clk 0:00:56.1]} 21... Nd3 {[%clk 0:00:46.5]} 22. Be3 {[%clk 0:00:53.1]}
22... Nxb2 {[%clk 0:00:36.6]} 23. Bxe4 {[%clk 0:00:51.2]} 23... Rxe4 {[%clk
0:00:36.6]} 24. Rab1 {[%clk 0:00:51.5]} 24... Nc4 {[%clk 0:00:35.1]} 25. Rxb7
{[%clk 0:00:33.2]} 25... Nxe3+ {[%clk 0:00:35]} 26. fxe3 {[%clk 0:00:34.1]}
26... Rxe3 {[%clk 0:00:35.3]} 27. Rf1 {[%clk 0:00:34.2]} 27... Re2+ {[%clk
0:00:26.9]} 28. Kh3 {[%clk 0:00:32.9]} 28... f6 {[%clk 0:00:24.6]} 29. Rd1
{[%clk 0:00:29.2]} 29... Re5 {[%clk 0:00:10.5]} 30. Rdd7 {[%clk 0:00:26.9]}
30... Rg5 {[%clk 0:00:10.7]} 31. Kg2 {[%clk 0:00:15]} 31... h5 {[%clk
0:00:09.1]} 32. Kf3 {[%clk 0:00:12.3]} 32... Rc8 {[%clk 0:00:06]} 33. a4 {[%clk
0:00:06.5]} 33... Rc3+ {[%clk 0:00:05.7]} 34. Ke2 {[%clk 0:00:06.8]} 34... Ra3
{[%clk 0:00:05]} 35. Rb4 {[%clk 0:00:04.3]} 35... Ra5 {[%clk 0:00:03.9]} 36.
Rdd4 {[%clk 0:00:03.9]} 36... Re5+ {[%clk 0:00:02.9]} 37. Kd2 {[%clk 0:00:03.3]}
37... Ree3 {[%clk 0:00:03.3]} 38. Rb6 {[%clk 0:00:02.1]} 38... Reb3 {[%clk
0:00:02.9]} 39. Rxb3 {[%clk 0:00:01.9]} 39... Rxb3 {[%clk 0:00:03.8]} 40. Kc2
{[%clk 0:00:02.6]} 40... Ra3 {[%clk 0:00:03.9]} 41. Kb2 {[%clk 0:00:03.1]} 41...
Re3 {[%clk 0:00:03.5]} 42. Rd6 {[%clk 0:00:03.4]} 42... Re2+ {[%clk 0:00:03.9]}
43. Kb3 {[%clk 0:00:03.8]} 43... Rxh2 {[%clk 0:00:04.3]} 44. Rxa6 {[%clk
0:00:04.6]} 44... Rh3 {[%clk 0:00:04.7]} 45. Kb4 {[%clk 0:00:04.4]} 45... Rxg3
{[%clk 0:00:04.9]} 46. Ra8+ {[%clk 0:00:05.3]} 46... Kh7 {[%clk 0:00:04.8]} 47.
Rf8 {[%clk 0:00:05.5]} 47... Rg1 {[%clk 0:00:04.6]} 48. a5 {[%clk 0:00:06.4]}
48... g5 {[%clk 0:00:04.5]} 49. Rxf6 {[%clk 0:00:06.2]} 49... h4 {[%clk
0:00:04.1]} 0-1

[Event "Late-Titled-Tuesday-Blitz-September-12-2023"]
[Site "Chess.com"]
[Date "2023.09.12"]
[Round "5"]
[White "ChessDokmus"]
[Black "Inepton_Fermion"]
[Result "0-1"]
[WhiteElo "2191"]
[BlackElo "2359"]
[TimeControl "180+1"]
[EndTime "14:53:58 PDT"]
[Termination "Inepton_Fermion won by resignation"]

1. e4 {[%clk 0:03:00.9]} 1... c5 {[%clk 0:02:59.3]} 2. Nf3 {[%clk 0:03:00.9]}
2... e6 {[%clk 0:02:59.7]} 3. d4 {[%clk 0:02:56.8]} 3... cxd4 {[%clk 0:03:00.6]}
4. c3 {[%clk 0:02:55.7]} 4... d5 {[%clk 0:02:51.1]} 5. exd5 {[%clk 0:02:46.1]}
5... Qxd5 {[%clk 0:02:52]} 6. cxd4 {[%clk 0:02:42.8]} 6... Nf6 {[%clk
0:02:52.5]} 7. Nc3 {[%clk 0:02:40.4]} 7... Qd6 {[%clk 0:02:47]} 8. Bd3 {[%clk
0:02:36.3]} 8... Be7 {[%clk 0:02:45.7]} 9. O-O {[%clk 0:02:33.7]} 9... O-O
{[%clk 0:02:36]} 10. h3 {[%clk 0:02:33.8]} 10... Nc6 {[%clk 0:02:34]} 11. Be3
{[%clk 0:02:33.8]} 11... b6 {[%clk 0:02:31.8]} 12. Ne4 {[%clk 0:02:30.8]} 12...
Nxe4 {[%clk 0:02:23.5]} 13. Bxe4 {[%clk 0:02:31.7]} 13... Bb7 {[%clk 0:02:23]}
14. Rc1 {[%clk 0:02:29.9]} 14... Rac8 {[%clk 0:02:04.9]} 15. Ne5 {[%clk
0:02:29.4]} 15... Na5 {[%clk 0:01:43.3]} 16. Bxb7 {[%clk 0:02:30.3]} 16... Nxb7
{[%clk 0:01:43.8]} 17. Qf3 {[%clk 0:02:22.3]} 17... Qd5 {[%clk 0:01:36.8]} 18.
Rxc8 {[%clk 0:02:12.6]} 18... Rxc8 {[%clk 0:01:17.6]} 19. Qxf7+ {[%clk
0:02:11.8]} 19... Kh8 {[%clk 0:01:18.2]} 20. Qxe7 {[%clk 0:02:10.4]} 20... a6
{[%clk 0:01:05.1]} 21. Nf7+ {[%clk 0:01:15.9]} 21... Kg8 {[%clk 0:01:05.1]} 22.
Rc1 {[%clk 0:01:16.5]} 22... Rxc1+ {[%clk 0:00:54.5]} 23. Bxc1 {[%clk
0:01:17.4]} 23... h6 {[%clk 0:00:54.6]} 24. Qe8+ {[%clk 0:01:12.6]} 24... Kh7
{[%clk 0:00:54.5]} 25. Qh8+ {[%clk 0:01:09.3]} 25... Kg6 {[%clk 0:00:54.7]} 26.
Ne5+ {[%clk 0:01:03.7]} 26... Kf5 {[%clk 0:00:45.3]} 27. Qh7+ {[%clk 0:01:02.4]}
27... Kf6 {[%clk 0:00:45.5]} 28. Qg6+ {[%clk 0:01:00]} 28... Ke7 {[%clk
0:00:45.4]} 29. Qxg7+ {[%clk 0:00:59.8]} 29... Ke8 {[%clk 0:00:44.3]} 30. Qd7+
{[%clk 0:00:58]} 30... Qxd7 {[%clk 0:00:43.7]} 31. Nxd7 {[%clk 0:00:57.3]} 31...
Kxd7 {[%clk 0:00:44.6]} 32. Bxh6 {[%clk 0:00:57.2]} 32... Nd6 {[%clk 0:00:38.5]}
33. Be3 {[%clk 0:00:57.1]} 33... a5 {[%clk 0:00:34.1]} 34. g4 {[%clk 0:00:52.2]}
34... a4 {[%clk 0:00:32.6]} 35. b3 {[%clk 0:00:52.5]} 35... b5 {[%clk
0:00:29.2]} 36. h4 {[%clk 0:00:51.7]} 36... Ne4 {[%clk 0:00:28.8]} 37. bxa4
{[%clk 0:00:47.2]} 37... bxa4 {[%clk 0:00:28.7]} 38. a3 {[%clk 0:00:45.2]} 38...
Ke7 {[%clk 0:00:26.3]} 39. Kg2 {[%clk 0:00:44.6]} 39... Kf7 {[%clk 0:00:24.7]}
40. Kf3 {[%clk 0:00:44.7]} 40... Nc3 {[%clk 0:00:24.9]} 41. Bc1 {[%clk
0:00:43.7]} 41... Nb5 {[%clk 0:00:21.7]} 42. Ke4 {[%clk 0:00:41.2]} 42... Nd6+
{[%clk 0:00:17.9]} 43. Kd3 {[%clk 0:00:40.2]} 43... Kg6 {[%clk 0:00:16.9]} 44.
h5+ {[%clk 0:00:37.4]} 44... Kg7 {[%clk 0:00:16]} 45. f4 {[%clk 0:00:36.4]}
45... Kf7 {[%clk 0:00:14.9]} 46. Bd2 {[%clk 0:00:33.3]} 46... Nb5 {[%clk
0:00:14.4]} 47. Bb4 {[%clk 0:00:32.9]} 47... Nc7 {[%clk 0:00:14.6]} 48. Ke4
{[%clk 0:00:33]} 48... Nd5 {[%clk 0:00:15.2]} 49. g5 {[%clk 0:00:33.1]} 49...
Nxb4 {[%clk 0:00:12]} 50. g6+ {[%clk 0:00:32.3]} 50... Kg7 {[%clk 0:00:11.9]}
51. axb4 {[%clk 0:00:32.5]} 51... a3 {[%clk 0:00:12]} 52. Ke5 {[%clk 0:00:32.3]}
52... a2 {[%clk 0:00:12.9]} 53. Kxe6 {[%clk 0:00:32.7]} 53... a1=Q {[%clk
0:00:13.4]} 54. d5 {[%clk 0:00:32.7]} 54... Qf6+ {[%clk 0:00:12.6]} 55. Kd7
{[%clk 0:00:32.9]} 55... Qxf4 {[%clk 0:00:09.3]} 56. d6 {[%clk 0:00:32.9]} 56...
Qxb4 {[%clk 0:00:06.4]} 57. Kc7 {[%clk 0:00:32.8]} 57... Qc5+ {[%clk 0:00:06.3]}
58. Kd7 {[%clk 0:00:32.7]} 58... Qxh5 {[%clk 0:00:04.2]} 59. Ke7 {[%clk
0:00:31.2]} 59... Qe5+ {[%clk 0:00:04.1]} 60. Kd7 {[%clk 0:00:30.3]} 60... Kxg6
{[%clk 0:00:04.6]} 61. Kc7 {[%clk 0:00:29.5]} 61... Kf7 {[%clk 0:00:04.3]} 62.
Kc6 {[%clk 0:00:29.7]} 62... Ke8 {[%clk 0:00:04.1]} 63. Kc7 {[%clk 0:00:29.9]}
63... Qe6 {[%clk 0:00:03.9]} 64. Kc6 {[%clk 0:00:29.2]} 64... Kd8 {[%clk
0:00:04.2]} 65. Kb5 {[%clk 0:00:28]} 65... Kd7 {[%clk 0:00:05.1]} 0-1

[Event "Late-Titled-Tuesday-Blitz-September-12-2023"]
[Site "Chess.com"]
[Date "2023.09.12"]
[Round "5"]
[White "Chessdemon2019"]
[Black "GMJustin"]
[Result "0-1"]
[WhiteElo "2380"]
[BlackElo "2240"]
[TimeControl "180+1"]
[EndTime "14:54:08 PDT"]
[Termination "GMJustin won by checkmate"]

1. e4 {[%clk 0:03:00.9]} 1... e5 {[%clk 0:02:39]} 2. Nf3 {[%clk 0:02:52.8]} 2...
Nc6 {[%clk 0:02:38.2]} 3. Bc4 {[%clk 0:02:51]} 3... Nf6 {[%clk 0:02:36.9]} 4. d3
{[%clk 0:02:51.1]} 4... Be7 {[%clk 0:02:36]} 5. c3 {[%clk 0:02:48.7]} 5... O-O
{[%clk 0:02:23.5]} 6. O-O {[%clk 0:02:34.5]} 6... d6 {[%clk 0:02:22.6]} 7. Nbd2
{[%clk 0:02:34]} 7... Na5 {[%clk 0:02:05.9]} 8. Bb5 {[%clk 0:02:33]} 8... a6
{[%clk 0:02:06]} 9. Ba4 {[%clk 0:02:33.3]} 9... c5 {[%clk 0:02:03]} 10. d4
{[%clk 0:02:27.8]} 10... cxd4 {[%clk 0:01:42.6]} 11. cxd4 {[%clk 0:02:27.9]}
11... Bg4 {[%clk 0:01:42.6]} 12. h3 {[%clk 0:02:23.2]} 12... Bh5 {[%clk
0:01:37.4]} 13. d5 {[%clk 0:02:16.1]} 13... Rc8 {[%clk 0:01:24.9]} 14. Nb3
{[%clk 0:01:53.7]} 14... Nxe4 {[%clk 0:01:19.7]} 15. Nxa5 {[%clk 0:01:38.9]}
15... Qxa5 {[%clk 0:01:19.7]} 16. Be3 {[%clk 0:01:38.7]} 16... Bxf3 {[%clk
0:01:16.2]} 17. gxf3 {[%clk 0:01:37.8]} 17... Nc5 {[%clk 0:01:12.9]} 18. Bc2
{[%clk 0:01:36.2]} 18... Qb4 {[%clk 0:01:09.3]} 19. Bf5 {[%clk 0:01:26.5]} 19...
Rc7 {[%clk 0:01:04.2]} 20. a3 {[%clk 0:01:25.9]} 20... Qxb2 {[%clk 0:00:57.2]}
21. Qe1 {[%clk 0:01:04.9]} 21... g6 {[%clk 0:00:48.5]} 22. Bxc5 {[%clk
0:00:48.8]} 22... Rxc5 {[%clk 0:00:45]} 23. Bd3 {[%clk 0:00:42.7]} 23... Qd4
{[%clk 0:00:41]} 24. Qe4 {[%clk 0:00:38.5]} 24... Qxd5 {[%clk 0:00:24.2]} 25.
Rab1 {[%clk 0:00:31.9]} 25... b5 {[%clk 0:00:18.4]} 26. a4 {[%clk 0:00:30.6]}
26... bxa4 {[%clk 0:00:12.5]} 27. Bxa6 {[%clk 0:00:26.7]} 27... Qe6 {[%clk
0:00:11.4]} 28. Kg2 {[%clk 0:00:24.9]} 28... Ra5 {[%clk 0:00:09.7]} 29. Bc4
{[%clk 0:00:24.4]} 29... d5 {[%clk 0:00:09.4]} 30. Qe1 {[%clk 0:00:22.7]} 30...
Ra7 {[%clk 0:00:08.3]} 31. Bd3 {[%clk 0:00:21.3]} 31... a3 {[%clk 0:00:07.7]}
32. Ra1 {[%clk 0:00:21.2]} 32... a2 {[%clk 0:00:07.4]} 33. Qe3 {[%clk
0:00:21.5]} 33... d4 {[%clk 0:00:07.1]} 34. Qe2 {[%clk 0:00:20.6]} 34... Kg7
{[%clk 0:00:06.2]} 35. Bc4 {[%clk 0:00:20.6]} 35... Qf5 {[%clk 0:00:05.8]} 36.
Rxa2 {[%clk 0:00:20.2]} 36... Rxa2 {[%clk 0:00:04.7]} 37. Bxa2 {[%clk
0:00:20.2]} 37... Rd8 {[%clk 0:00:04.3]} 38. Rd1 {[%clk 0:00:19.4]} 38... d3
{[%clk 0:00:04.1]} 39. Qe4 {[%clk 0:00:19.8]} 39... Qxe4 {[%clk 0:00:03.8]} 40.
fxe4 {[%clk 0:00:20.3]} 40... f5 {[%clk 0:00:04]} 41. Kf3 {[%clk 0:00:20.3]}
41... Rd4 {[%clk 0:00:03]} 42. exf5 {[%clk 0:00:20.4]} 42... e4+ {[%clk
0:00:03.2]} 43. Ke3 {[%clk 0:00:20.7]} 43... Bc5 {[%clk 0:00:03.4]} 44. Bb1
{[%clk 0:00:16.8]} 44... gxf5 {[%clk 0:00:03.1]} 45. Kf4 {[%clk 0:00:17]} 45...
Rb4 {[%clk 0:00:03]} 46. Kxf5 {[%clk 0:00:16.6]} 46... Bxf2 {[%clk 0:00:02.9]}
47. Kf4 {[%clk 0:00:16.6]} 47... e3+ {[%clk 0:00:02.8]} 48. Kf3 {[%clk
0:00:16.6]} 48... e2 {[%clk 0:00:03.2]} 49. Rh1 {[%clk 0:00:13.6]} 49... e1=Q
{[%clk 0:00:03]} 50. Rxe1 {[%clk 0:00:14]} 50... Bxe1 {[%clk 0:00:03.4]} 51.
Bxd3 {[%clk 0:00:14.6]} 51... Rb3 {[%clk 0:00:03.6]} 52. Ke2 {[%clk 0:00:14.7]}
52... Bh4 {[%clk 0:00:03.7]} 53. Bf5 {[%clk 0:00:15]} 53... h5 {[%clk
0:00:03.9]} 54. Kf1 {[%clk 0:00:14.5]} 54... Rc3 {[%clk 0:00:04.1]} 55. Kg2
{[%clk 0:00:14.7]} 55... Kh6 {[%clk 0:00:04.3]} 56. Be6 {[%clk 0:00:14.9]} 56...
Kg5 {[%clk 0:00:04.6]} 57. Bd7 {[%clk 0:00:14.9]} 57... Re3 {[%clk 0:00:05]} 58.
Bc8 {[%clk 0:00:15.2]} 58... Kf4 {[%clk 0:00:05.3]} 59. Bd7 {[%clk 0:00:15.8]}
59... Re2+ {[%clk 0:00:05.4]} 60. Kf1 {[%clk 0:00:16.3]} 60... Rd2 {[%clk
0:00:05.7]} 61. Bc6 {[%clk 0:00:16.6]} 61... Kg3 {[%clk 0:00:05.8]} 62. Bb5
{[%clk 0:00:15.6]} 62... Kxh3 {[%clk 0:00:05.8]} 63. Be2 {[%clk 0:00:16.1]}
63... Bg3 {[%clk 0:00:04.6]} 64. Bxh5 {[%clk 0:00:16.3]} 64... Rf2+ {[%clk
0:00:04.2]} 65. Kg1 {[%clk 0:00:16.4]} 65... Rf5 {[%clk 0:00:04]} 66. Be2 {[%clk
0:00:16.5]} 66... Bh2+ {[%clk 0:00:03.9]} 67. Kh1 {[%clk 0:00:16.6]} 67... Rf2
{[%clk 0:00:04.1]} 68. Bg4+ {[%clk 0:00:16]} 68... Kg3 {[%clk 0:00:04.1]} 69.
Bh3 {[%clk 0:00:15.7]} 69... Rb2 {[%clk 0:00:03.6]} 70. Bg2 {[%clk 0:00:15.9]}
70... Rb1+ {[%clk 0:00:03.6]} 71. Bf1 {[%clk 0:00:16]} 71... Rxf1# {[%clk
0:00:04]} 0-1

[Event "Late-Titled-Tuesday-Blitz-September-12-2023"]
[Site "Chess.com"]
[Date "2023.09.12"]
[Round "5"]
[White "OYAcosta"]
[Black "octopus_assassin"]
[Result "1-0"]
[WhiteElo "2215"]
[BlackElo "2349"]
[TimeControl "180+1"]
[EndTime "14:54:15 PDT"]
[Termination "OYAcosta won by resignation"]

1. d4 {[%clk 0:03:00.9]} 1... Nf6 {[%clk 0:02:59.3]} 2. Bf4 {[%clk 0:02:59.7]}
2... g6 {[%clk 0:02:58.1]} 3. e3 {[%clk 0:02:57.4]} 3... d6 {[%clk 0:02:58.3]}
4. Nf3 {[%clk 0:02:57.5]} 4... Bg7 {[%clk 0:02:57.3]} 5. Be2 {[%clk 0:02:52.4]}
5... O-O {[%clk 0:02:57.3]} 6. O-O {[%clk 0:02:51.8]} 6... Nbd7 {[%clk
0:02:57.9]} 7. c4 {[%clk 0:02:51.1]} 7... Nh5 {[%clk 0:02:48.6]} 8. Bg5 {[%clk
0:02:50.4]} 8... h6 {[%clk 0:02:48.9]} 9. Bh4 {[%clk 0:02:50.3]} 9... g5 {[%clk
0:02:46.9]} 10. Nfd2 {[%clk 0:02:50.6]} 10... gxh4 {[%clk 0:02:35.9]} 11. Bxh5
{[%clk 0:02:49]} 11... Nf6 {[%clk 0:02:36.2]} 12. Bf3 {[%clk 0:02:44.4]} 12...
e5 {[%clk 0:02:35.4]} 13. Nc3 {[%clk 0:02:43]} 13... Kh8 {[%clk 0:02:28.1]} 14.
Rc1 {[%clk 0:02:38.8]} 14... h3 {[%clk 0:02:28.3]} 15. g3 {[%clk 0:02:35.7]}
15... Bf5 {[%clk 0:02:25.4]} 16. e4 {[%clk 0:02:16.5]} 16... Bd7 {[%clk
0:02:17.5]} 17. d5 {[%clk 0:02:00.4]} 17... Nh7 {[%clk 0:02:13.8]} 18. Bg4
{[%clk 0:01:56.4]} 18... f5 {[%clk 0:01:49.1]} 19. Bxh3 {[%clk 0:01:51.4]} 19...
Ng5 {[%clk 0:01:45.7]} 20. Bg2 {[%clk 0:01:46.2]} 20... f4 {[%clk 0:01:44.4]}
21. Nf3 {[%clk 0:01:31]} 21... Nh3+ {[%clk 0:01:41.2]} 22. Kh1 {[%clk
0:01:27.3]} 22... Bg4 {[%clk 0:01:38.3]} 23. Qd3 {[%clk 0:01:24.8]} 23... h5
{[%clk 0:01:30.8]} 24. Nh4 {[%clk 0:01:20.8]} 24... fxg3 {[%clk 0:01:19.2]} 25.
Ng6+ {[%clk 0:01:11.6]} 25... Kh7 {[%clk 0:01:06.4]} 26. Nxf8+ {[%clk
0:01:10.3]} 26... Qxf8 {[%clk 0:01:04.4]} 27. Qxg3 {[%clk 0:01:05.2]} 27... Nf4
{[%clk 0:00:58.1]} 28. Bf3 {[%clk 0:00:59.1]} 28... Bh3 {[%clk 0:00:53.1]} 29.
Rg1 {[%clk 0:00:55.8]} 29... Qf6 {[%clk 0:00:46.1]} 30. Ne2 {[%clk 0:00:39.3]}
30... Nd3 {[%clk 0:00:44.7]} 31. Rc3 {[%clk 0:00:31]} 31... Nxf2+ {[%clk
0:00:26.2]} 32. Qxf2 {[%clk 0:00:28.4]} 32... Rf8 {[%clk 0:00:25.6]} 33. Qg3
{[%clk 0:00:20.5]} 33... Bd7 {[%clk 0:00:25.1]} 34. Bxh5 {[%clk 0:00:13.3]}
34... Qh6 {[%clk 0:00:18.9]} 35. Bg6+ {[%clk 0:00:12.2]} 35... Kg8 {[%clk
0:00:17.9]} 36. Rf3 {[%clk 0:00:11.4]} 36... Bf6 {[%clk 0:00:15.6]} 37. Bf5+
{[%clk 0:00:10.6]} 37... Kf7 {[%clk 0:00:14.2]} 38. Bxd7 {[%clk 0:00:10.5]}
38... Qd2 {[%clk 0:00:10.6]} 39. Be6+ {[%clk 0:00:05.4]} 39... Ke7 {[%clk
0:00:10.6]} 40. Rf2 {[%clk 0:00:04.8]} 40... Kd8 {[%clk 0:00:08.5]} 41. Nc3
{[%clk 0:00:05.1]} 41... Qh6 {[%clk 0:00:08.3]} 42. Rxf6 {[%clk 0:00:04.6]}
42... Qxf6 {[%clk 0:00:08.4]} 43. Qg8 {[%clk 0:00:05.4]} 43... Rxg8 {[%clk
0:00:07.9]} 44. Rxg8+ {[%clk 0:00:06.2]} 44... Ke7 {[%clk 0:00:08.6]} 45. Ne2
{[%clk 0:00:04.8]} 45... Qf3+ {[%clk 0:00:08.5]} 46. Rg2 {[%clk 0:00:05]} 46...
Qf1+ {[%clk 0:00:08.4]} 47. Ng1 {[%clk 0:00:04.8]} 47... Qxc4 {[%clk 0:00:08.7]}
48. Bf5 {[%clk 0:00:04.6]} 48... Qxa2 {[%clk 0:00:08.2]} 49. h4 {[%clk
0:00:05.1]} 49... Qxb2 {[%clk 0:00:07]} 50. Rxb2 {[%clk 0:00:03.8]} 50... b6
{[%clk 0:00:02.4]} 51. Rg2 {[%clk 0:00:03.1]} 51... Kf6 {[%clk 0:00:03.3]} 52.
h5 {[%clk 0:00:03.6]} 52... a5 {[%clk 0:00:03]} 53. h6 {[%clk 0:00:04.5]} 53...
a4 {[%clk 0:00:03.7]} 54. h7 {[%clk 0:00:05.4]} 54... a3 {[%clk 0:00:04.6]} 55.
h8=Q+ {[%clk 0:00:06.3]} 55... Ke7 {[%clk 0:00:04.5]} 56. Qg7+ {[%clk
0:00:05.6]} 1-0

[Event "Late-Titled-Tuesday-Blitz-September-12-2023"]
[Site "Chess.com"]
[Date "2023.09.12"]
[Round "5"]
[White "kaanadayhamle"]
[Black "RichardLeyvaP"]
[Result "1/2-1/2"]
[WhiteElo "2431"]
[BlackElo "2611"]
[TimeControl "180+1"]
[EndTime "14:54:19 PDT"]
[Termination "Game drawn by repetition"]

1. Nf3 {[%clk 0:03:00.9]} 1... Nf6 {[%clk 0:02:59.3]} 2. g3 {[%clk 0:03:00.4]}
2... g6 {[%clk 0:02:59.9]} 3. Bg2 {[%clk 0:02:59.9]} 3... Bg7 {[%clk 0:03:00.3]}
4. O-O {[%clk 0:03:00.8]} 4... O-O {[%clk 0:03:00.6]} 5. d4 {[%clk 0:03:00.6]}
5... d6 {[%clk 0:03:00.8]} 6. Nc3 {[%clk 0:03:00.4]} 6... d5 {[%clk 0:02:54.5]}
7. Bf4 {[%clk 0:02:58.9]} 7... c6 {[%clk 0:02:52.2]} 8. Qd2 {[%clk 0:02:58.3]}
8... Ne4 {[%clk 0:02:48.2]} 9. Nxe4 {[%clk 0:02:46.1]} 9... dxe4 {[%clk
0:02:47.9]} 10. Ne5 {[%clk 0:02:46.4]} 10... f6 {[%clk 0:02:35.5]} 11. Nc4
{[%clk 0:02:42.1]} 11... Be6 {[%clk 0:02:25.6]} 12. Na3 {[%clk 0:02:38.9]} 12...
f5 {[%clk 0:02:23.7]} 13. c3 {[%clk 0:02:36.5]} 13... Nd7 {[%clk 0:02:22.4]} 14.
Bh6 {[%clk 0:02:36.2]} 14... Nf6 {[%clk 0:02:21]} 15. Bxg7 {[%clk 0:02:36.5]}
15... Kxg7 {[%clk 0:02:21.9]} 16. f3 {[%clk 0:02:34.6]} 16... Bd5 {[%clk
0:02:10.8]} 17. c4 {[%clk 0:02:34]} 17... exf3 {[%clk 0:02:02.3]} 18. exf3
{[%clk 0:02:31.5]} 18... Bg8 {[%clk 0:02:02.1]} 19. d5 {[%clk 0:02:32.4]} 19...
cxd5 {[%clk 0:02:01.4]} 20. c5 {[%clk 0:02:30.1]} 20... d4 {[%clk 0:01:54.2]}
21. Rad1 {[%clk 0:02:26.2]} 21... e5 {[%clk 0:01:53.2]} 22. f4 {[%clk
0:02:26.7]} 22... e4 {[%clk 0:01:40.7]} 23. Qxd4 {[%clk 0:02:26.4]} 23... Qxd4+
{[%clk 0:01:40.7]} 24. Rxd4 {[%clk 0:02:27.3]} 24... Bxa2 {[%clk 0:01:38.5]} 25.
Rfd1 {[%clk 0:02:23.6]} 25... Bb3 {[%clk 0:01:36.7]} 26. R1d2 {[%clk 0:02:17.5]}
26... a6 {[%clk 0:01:24.6]} 27. Rb4 {[%clk 0:01:53.6]} 27... Bd5 {[%clk
0:01:23.3]} 28. Nc4 {[%clk 0:01:54.2]} 28... Bxc4 {[%clk 0:01:21.9]} 29. Rxc4
{[%clk 0:01:55.1]} 29... Rad8 {[%clk 0:01:20.9]} 30. Rcd4 {[%clk 0:01:51.9]}
30... Rxd4 {[%clk 0:01:20.9]} 31. Rxd4 {[%clk 0:01:52.8]} 31... Rc8 {[%clk
0:01:21.1]} 32. b4 {[%clk 0:01:52.8]} 32... a5 {[%clk 0:01:21.7]} 33. h3 {[%clk
0:01:41.1]} 33... h5 {[%clk 0:01:21.2]} 34. Kf2 {[%clk 0:01:35.5]} 34... axb4
{[%clk 0:01:18.2]} 35. Rxb4 {[%clk 0:01:36.4]} 35... Rxc5 {[%clk 0:01:12.9]} 36.
Rxb7+ {[%clk 0:01:36.5]} 36... Kh6 {[%clk 0:01:13.2]} 37. Bf1 {[%clk 0:01:34.5]}
37... h4 {[%clk 0:00:54.6]} 38. gxh4 {[%clk 0:01:32.6]} 38... Nh5 {[%clk
0:00:53.4]} 39. Rb6 {[%clk 0:01:15.3]} 39... Nxf4 {[%clk 0:00:49.3]} 40. Ke3
{[%clk 0:01:08.3]} 40... Nh5 {[%clk 0:00:36]} 41. Rb3 {[%clk 0:00:57.4]} 41...
Rc1 {[%clk 0:00:27]} 42. Be2 {[%clk 0:00:55.6]} 42... Ng3 {[%clk 0:00:27]} 43.
Bb5 {[%clk 0:00:52.9]} 43... Nh5 {[%clk 0:00:17.7]} 44. Be8 {[%clk 0:00:43]}
44... Rh1 {[%clk 0:00:17.3]} 45. Kf2 {[%clk 0:00:24.2]} 45... Rc1 {[%clk
0:00:12.5]} 46. Rb6 {[%clk 0:00:18.7]} 46... Rc2+ {[%clk 0:00:12.5]} 47. Ke3
{[%clk 0:00:14.8]} 47... Rc3+ {[%clk 0:00:12.7]} 48. Kd2 {[%clk 0:00:13.1]}
48... Rg3 {[%clk 0:00:12.5]} 49. Ke2 {[%clk 0:00:12.7]} 49... Nf4+ {[%clk
0:00:12.5]} 50. Kf2 {[%clk 0:00:13.2]} 50... Rxh3 {[%clk 0:00:12.1]} 51. h5
{[%clk 0:00:12.4]} 51... Kxh5 {[%clk 0:00:11.1]} 52. Rb7 {[%clk 0:00:09]} 52...
Kg5 {[%clk 0:00:10.9]} 53. Rb6 {[%clk 0:00:07.8]} 53... Rf3+ {[%clk 0:00:11.1]}
54. Kg1 {[%clk 0:00:08]} 54... Rc3 {[%clk 0:00:10.6]} 55. Ra6 {[%clk 0:00:07.2]}
55... Rc8 {[%clk 0:00:10.6]} 56. Bd7 {[%clk 0:00:06.8]} 56... Rd8 {[%clk
0:00:10.6]} 57. Bb5 {[%clk 0:00:06.3]} 57... e3 {[%clk 0:00:10.6]} 58. Kf1
{[%clk 0:00:06]} 58... Kg4 {[%clk 0:00:10.3]} 59. Ra2 {[%clk 0:00:05.2]} 59...
Rd6 {[%clk 0:00:09.3]} 60. Ke1 {[%clk 0:00:05.1]} 60... Kf3 {[%clk 0:00:09.5]}
61. Bf1 {[%clk 0:00:04.8]} 61... g5 {[%clk 0:00:09.5]} 62. Ba6 {[%clk
0:00:02.9]} 62... Rb6 {[%clk 0:00:08.2]} 63. Kd1 {[%clk 0:00:02.7]} 63... Rb1+
{[%clk 0:00:07.6]} 64. Kc2 {[%clk 0:00:03.3]} 64... Rb6 {[%clk 0:00:07.7]} 65.
Kd1 {[%clk 0:00:03.3]} 65... Rd6+ {[%clk 0:00:06.9]} 66. Ke1 {[%clk 0:00:03.1]}
66... Rb6 {[%clk 0:00:06.1]} 67. Kd1 {[%clk 0:00:04]} 1/2-1/2